Cogmind - Beta 9.2 *** ADVENTURER MODE // 2019.11.17 @ 19:46:47 Player: Rian Result: Destroyed by S-10 Pest with Light Assault Rifle Performance ------------- Evolutions (0) 0 Regions Visited (2) 400 Robots Destroyed (39) 195 Value Destroyed (518) 518 Prototype IDs (2) 40 Alien Tech Used (0) 0 Bonus (0) 0 TOTAL SCORE: 1153 Bonus ------- None Cogmind --------- Core Integrity 0/250 Matter 300/300 Energy 120/125 System Corruption 0% Temperature Cool (0) Movement Flying (117) Ox1 Location -10/Mines Parts ------- > --- POWER (1) -------- Light Ion Engine > --- PROPULSION (2) --- Flight Unit Flight Unit > --- UTILITY (2) ------ Medium Storage Unit > --- WEAPON (2) ------- Hammer > --- INVENTORY (8) ---- Light Assault Rifle Mining Laser Peak State ------------ > --- POWER ------------ Ion Engine > --- PROPULSION ------- Wheel Wheel > --- UTILITY ---------- Small Storage Unit Improved Terrain Scanner > --- WEAPON ----------- EM Pulse Gun EM Shotgun > --- INVENTORY -------- Light Assault Rifle Light Assault Rifle Mining Laser [Rating: 9] Favorites ----------- Power Ion Engine Engine Ion Engine Propulsion Wheel Wheel Wheel Flight Unit Flight Unit Utility Medium Storage Unit Device Shield Generator Storage Medium Storage Unit Weapon EM Pulse Gun Energy Gun EM Pulse Gun Ballistic Gun Light Assault Rifle Impact Weapon Hammer Build | -11 -10 -10 ------- Run | Scr Mat Min Slots Evolved . | . . . Power . | . . . Propulsion . | . . . Utility . | . . . Weapon . | . . . Parts Attached 16 | 8 5 3 Power 2 | 1 . 1 Engine 2 | 1 . 1 Core . | . . . Reactor . | . . . Propulsion 5 | 3 . 2 Treads . | . . . Leg . | . . . Wheel 3 | 3 . . Hover . | . . . Flight 2 | . . 2 Utility 4 | 2 2 . Device 2 | 1 1 . Storage 2 | 1 1 . Processor . | . . . Hackware . | . . . Protection . | . . . Artifact . | . . . Weapon 5 | 2 3 . Energy Gun 2 | 1 1 . Energy Cannon . | . . . Ballistic Gun 2 | 1 1 . Ballistic Cannon . | . . . Launcher . | . . . Special Weapon . | . . . Impact Weapon 1 | . 1 . Slashing Weapon . | . . . Piercing Weapon . | . . . Special Melee Weapon . | . . . Unidentified Prototypes . | . . . Parts Lost 6 | . 1 5 Power 1 | . . 1 Propulsion 2 | . . 2 Utility 1 | . . 1 Weapon 2 | . 1 1 Highest Loss Streak 3 | . 1 3 Average Slot Usage (%) 78 | . 99 52 Engine 10 | . 14 5 Wheel 17 | . 28 5 Flight 5 | . . 12 Device 7 | . 14 . Storage 14 | . 14 14 Energy Gun 14 | . 26 . Impact Weapon 6 | . . 14 Naked Turns . | . . . Heaviest Build 20 | 13 20 15 Greatest Support 26 | 26 20 20 Greatest Overweight (x) 3 | . . 3 Average Overweight (x) . | . . 1 Largest Inventory Capacity 8 | 6 8 8 Average Capacity 7 | 5 7 8 Most Carried 6 | 3 6 3 Average Carried 2 | 1 3 2 Final Capacity 8 | 6 8 8 Final Carried 2 | 2 2 2 Class Distribution -------------------- 100% | Mutant Dominant Class ---------------- Mutant | -10/Materials Mutant | -10/Mines Resources | -11 -10 -10 ----------- Run | Scr Mat Min Matter Collected 353 | 280 43 30 Remotely . | . . . Salvage Created 938 | 292 397 249 Parts 55 | 24 21 10 Haulers Intercepted . | . . . Recyclers Shooed . | . . . Parts Field Recycled . | . . . Retrieved Matter . | . . . Parts Self-Destructed . | . . . Prevented . | . . . Kills | -11 -10 -10 ------- Run | Scr Mat Min Combat Hostiles Destroyed 19 | . 13 6 Melee 4 | . . 4 Guns 13 | . 13 . AOE 1 | . . 1 Classes Destroyed 5 | 2 3 . Worker 5 | 4 . 1 Tunneler 13 | 9 . 4 Watcher 2 | . 2 . Swarmer 13 | . 9 4 Grunt 6 | . 4 2 Best Kill Streak 5 | 4 5 4 Combat Bots Only 5 | . 5 2 Max Kills in Single Turn 2 | 1 2 1 Gunslinging 1 | . 1 . Exploded 1 | . . 1 Melee 1 | . . 1 Uniques/NPCs Destroyed . | . . . Combat | -11 -10 -10 -------- Run | Scr Mat Min Damage Taken 687 | 24 213 450 Core 251 | . 43 208 Absorbed by Shields 96 | . 88 8 Core Remaining (%) 100 | 100 . . Volleys Fired 69 | 35 31 3 Largest 2 | 1 2 1 Hottest 85 | 40 85 45 Shots Fired 96 | 35 58 3 Gun 96 | 35 58 3 Cannon . | . . . Launcher . | . . . Special . | . . . Kinetic . | . . . Thermal . | . . . Explosive . | . . . Electromagnetic 96 | 35 58 3 Robot Hit Streak 20 | 7 20 12 Robot Miss Streak 4 | 1 4 . Penetration Max . | . . . Secondary Targets 2 | . 2 . Max Gunslinging Chain 1 | . 1 . Shots Hit Robots 106 | 29 45 32 Core Hits 45 | 14 21 10 Critical Hits . | . . . Critical Kills . | . . . Critical Parts Destroyed . | . . . Melee Attacks 33 | . . 33 Impact 33 | . . 33 Slashing . | . . . Piercing . | . . . Sneak Attacks 8 | . . 8 Combat Hostiles . | . . . Follow-up Attacks . | . . . Damage Inflicted 2140 | 411 748 981 Guns 1113 | 380 676 57 Cannons . | . . . Explosions 221 | 31 72 118 Melee 806 | . . 806 Ramming . | . . . Kinetic . | . . . Thermal 221 | 31 72 118 Explosive . | . . . Electromagnetic 1113 | 380 676 57 Impact 806 | . . 806 Slashing . | . . . Piercing . | . . . Highest Corruption . | . . . Average Corruption . | . . . Corruption Purged . | . . . Overload Shots . | . . . Overflow Damage 202 | . 18 184 Projectiles . | . . . Explosions 44 | . 18 26 Melee 158 | . . 158 Knockbacks 4 | . . 4 Impact 4 | . . 4 Kinetic . | . . . Secondary . | . . . Self-Inflicted Damage 135 | 24 14 97 Shots 5 | 1 1 3 Rammed 2 | . 2 . Targets Rammed 2 | . 2 . Kicked . | . . . Crushed . | . . . Highest Temperature 176 | 12 176 41 Average Temperature 56 | 12 59 19 Received Heat Transfer 182 | . 60 122 Siege Activations . | . . . Robots Corrupted . | . . . Combat Hostiles . | . . . Parts Fried 8 | 1 . 7 Impact Corruptions 10 | . . 10 Robots Melted . | . . . Combat Hostiles . | . . . Parts Melted . | . . . Heat Transferred 350 | 50 100 200 Parts Sabotaged . | . . . Parts Stolen . | . . . Parts Stripped . | . . . Power Chain Reactions 2 | 1 1 . Missiles Intercepted . | . . . Alert | -11 -10 -10 ------- Run | Scr Mat Min Peak Influence 266 | 60 266 110 Average Influence 47 | 19 65 57 Maximum Alert Level 1 | . 1 . Low Security (%) 98 | 100 95 100 Level 1 1 | . 4 . Level 2 . | . . . Level 3 . | . . . Level 4 . | . . . Level 5 . | . . . High Security . | . . . Max Security . | . . . Squads Dispatched 1 | . 1 . Investigation 1 | . 1 . Extermination . | . . . Reinforcement . | . . . Assault . | . . . Garrison . | . . . Intercept . | . . . Construction Impeded . | . . . Haulers Reinforced . | . . . Stealth | -11 -10 -10 --------- Run | Scr Mat Min Distress Signals . | . . . Communications Jammed . | . . . Distress Signals . | . . . Times Spotted 29 | . 20 9 Peak Tracking Total 5 | . 5 3 Tactical Retreats 3 | . 1 2 Traps | -11 -10 -10 ------- Run | Scr Mat Min Traps Triggered . | . . . Indirectly . | . . . Trap Hack Attempts . | . . . Triggered . | . . . Disarmed 18 | . 18 . Reprogrammed . | . . . Reused . | . . . Traps Extracted . | . . . Installed . | . . . Triggered . | . . . Machines | -11 -10 -10 ---------- Run | Scr Mat Min Machines Disabled 3 | . . 3 Max in Single Turn 3 | . . 3 Machines Sabotaged . | . . . Garrisons Compromised . | . . . Overloaded Fab Kills . | . . . Fab Network Shutdowns . | . . . Hacking | -11 -10 -10 --------- Run | Scr Mat Min Machines Accessed 8 | . 8 . Terminals 7 | . 7 . Fabricators . | . . . Repair Stations . | . . . Recycling Units 1 | . 1 . Scanalyzers . | . . . Garrison Access . | . . . Total Hacks 23 | . 23 . Successful 17 | . 17 . Failed 6 | . 6 . Catastrophic . | . . . Database Lockouts . | . . . Manual 14 | . 14 . Terminals 21 | . 21 . Fabricators . | . . . Repair Stations . | . . . Recycling Units 2 | . 2 . Scanalyzers . | . . . Garrison Access . | . . . Terminal Hacks 15 | . 15 . Record 1 | . 1 . Part Schematic 3 | . 3 . Prototype ID Bank 1 | . 1 . Branch Access Points 1 | . 1 . Unreport Threat 1 | . 1 . Locate Traps 2 | . 2 . Disarm Traps 3 | . 3 . Zone Layout 3 | . 3 . Fabricator Hacks . | . . . Repair Station Hacks . | . . . Recycling Unit Hacks 1 | . 1 . Report Inventory 1 | . 1 . Scanalyzer . | . . . Garrison Access Hacks . | . . . Unauthorized Hacks 2 | . 2 . Terminals . | . . . Fabricators . | . . . Repair Stations . | . . . Recycling Units 1 | . 1 . Reject 1 | . 1 . Scanalyzers . | . . . Garrison Access . | . . . Data Cores Recovered . | . . . Used . | . . . Hacking Detections 5 | . 5 . Full Trace Events 1 | . 1 . Feedback Events . | . . . Feedback Blocked . | . . . Robot Schematics Acquired . | . . . Robots Built . | . . . Matter . | . . . Time . | . . . Total Robot Build Rating . | . . . Part Schematics Acquired 3 | . 3 . Parts Built . | . . . Matter . | . . . Time . | . . . Total Part Build Rating . | . . . Parts Repaired . | . . . Time . | . . . Parts Recycled . | . . . Recycled Matter . | . . . Retrieved Matter . | . . . Retrieved Components . | . . . Parts Scanalyzed . | . . . Part Schematics Acquired . | . . . Parts Damaged . | . . . Bothacking | -11 -10 -10 ------------ Run | Scr Mat Min Used RIF Installer . | . . . Robots Hacked . | . . . Non-combat . | . . . Combat . | . . . Robot Hacks Applied . | . . . Relay Couplers Released . | . . . Robots Rewired 1 | 1 . . Allies Hacked . | . . . Hacks Repelled . | . . . Allies | -11 -10 -10 -------- Run | Scr Mat Min Total Allies 1 | 1 . . Largest Group 1 | 1 1 . Highest-Rated Group 8 | 8 8 . Highest-Rated Ally 8 | 8 8 . Total Orders . | . . . Ally Attacks . | . . . Total Damage . | . . . Kills . | . . . Allies Corrupted . | . . . Allies Melted . | . . . Intel | -11 -10 -10 ------- Run | Scr Mat Min Robot Analysis Total . | . . . Derelict Logs Recovered 3 | . . 3 Drone Launches . | . . . Drone Recoveries . | . . . Exploration | -11 -10 -10 ------------- Run | Scr Mat Min Turns Passed 2111 | 753 746 612 Spaces Moved 1293 | 259 728 306 Core 6 | 4 . 2 Treads . | . . . Legs . | . . . Wheels 1076 | 255 728 93 Hover . | . . . Flight 211 | . . 211 Fastest Speed 50 | 50 80 80 Average Speed 101 | 81 80 169 Slowest Speed 280 | 90 80 280 Overloaded Moves . | . . . Propulsion Burnouts . | . . . Robots Hopped . | . . . Cave-ins Triggered . | . . . Exploration Rate (%) 55 | 6 98 63 Regions Visited 2 Branch Regions 1 Pre-discovered Areas 2 | . . 2 Known Exits Taken 1 | . 1 . Unknown Exits Taken 1 | 1 . . Scrap Searched 2 | . . 2 Spaces Dug . | . . . Terrain Destroyed 8 | 4 1 3 Melee . | . . . Projectile . | . . . AOE 8 | 4 1 3 Actions | -11 -10 -10 --------- Run | Scr Mat Min Total 1950 | 765 836 349 Wait 507 | 447 59 1 Move 1291 | 258 727 306 Hop . | . . . Pick Up 18 | 10 5 3 Fast Attach . | . . . Attach 15 | 8 4 3 Detach 4 | 1 3 . Swap 1 | . 1 . Drop 5 | 1 4 . Fire 69 | 35 31 3 Melee 33 | . . 33 Ram 2 | . 2 . Kick . | . . . Crush . | . . . Escape Stasis . | . . . Rewire 5 | 5 . . Trap . | . . . Miscellaneous . | . . . Route ------- -11/Scrapyard -10/Materials (discovered 5 exits: [*Mat x3] / *Min x2) -10/Mines (discovered 1 exit: [*Mat]) History --------- Turn | Location | Event 9 | -11/Scrapyard | Discovered new exit (range 16) 754 | -11/Scrapyard | Entered Materials 754 | -10/Materials | Accompanied by 1 ally 755 | -10/Materials | Build established: Mutant 797 | -10/Materials | Identified exit to Mines 914 | -10/Materials | Discovered new exit (range 12) 1051 | -10/Materials | Discovered new exit (range 7) 1223 | -10/Materials | Discovered new exit (range 14) 1500 | -10/Materials | Entered Mines 1522 | -10/Mines | Core integrity fell below 50% 1552 | -10/Mines | Lost 3 parts (1p1u1w) 1639 | -10/Mines | Core integrity fell below 20% 1787 | -10/Mines | Discovered new exit (range 7) 2012 | -10/Mines | Assisted by bots powering up and referring to "LRC-V3" 2112 | -10/Mines | Destroyed by S-10 Pest with Light Assault Rifle Last Messages --------------- 02050_ Sneak attack on K-01 Serf. 02050_ Destroyed Sml. Matter Pod. 02050_ K-01 Serf system corrupted by crushing effect. 02050_ K-01 Serf knocked back. 02077_ Sneak attack on T-07 Excavator. 02077_ Destroyed Wheel. 02077_ T-07 Excavator system corrupted by crushing effect. 02077_ Lgt. Ion Engine fried. 02077_ Imp. Terrain Scanner fried. 02077_ T-07 Excavator destroyed. 02090_ Sneak attack on T-07 Excavator. 02090_ T-07 Excavator destroyed. 02100_ S-10 Pest destroyed. 02102_ Destroyed Flight Unit. 02102_ S-10 Pest system corrupted by crushing effect. 02105_ Destroyed Flight Unit. 02105_ S-10 Pest system corrupted by crushing effect. 02106_ S-10 Pest system terminally corrupted. 02106_ Lgt. Assault Rifle fried. 02108_ S-10 Pest knocked back. Map ----- +----------------------------------------------------+ | | | | | | | | | | | | | | | | | | | | | | | | | | | | | | | | | | | | | | | ?????????????????????????????????????????????????? | | ?????????????????????????????????????????????????? | | ????????????????????????????????????????????###??? | | ???????????????????????????????########??### #??? | | ???????????????????????????##### ## #### #??? | | ??????????????? """ ######[= #???? | | ??????????????? """ s@|%=#### % ##???? | | ??????????????? """ #####%#??### ## #????? | | ??????????????# ????????#=#????###### ###### | | ??????????????#????????????# #?????????# | | ???????????????????????????# #?????????# ###### | | ???????????????????????????# #????????## #???## | | ???????????????????????????# #???????## #?### | | ???????????????????????????# #??????## ### | | ???????????????????????????# #??????# ### | | ????????????????????????#### #####??# ##?# | | ????????????????????????? ##?## ##??# | | ?????????????????????????# #??### #???## | | ?????????????????????????? ?????# #????#### | | ??????????????????????????? ???????# #???????# | | ???????????????????????##### #????##### #???????# | | ???????????????????????# #????# #???????# | | ???????????????????????# ### ##???# ####???????# | | ?????????????##???????????## ###?# #??????????# | | ?????????????# ??????????## ### ###????????# | | ?????????????# ####??????# ###??????# | | ??????????#### " "######?# #??# | | ??????????# #?# ## """ #?# | | ??????????# #?# ####### """ #?# | | ??????????# #?## ##????## """ #?# | | ??????????# #??# ##????# #?# | +----------------------------------------------------+ Best States ------------- Heat Dissipation 25 Energy Generation 10 Energy Capacity 250 Matter Stores 300 Matter Capacity 300 Sight Range 16 Terrain Scan Range 16 Terrain Scan Density 10 Resistance: KI 20 Resistance: TH 20 Resistance: EX 20 Resistance: EM 20 Resistance: I 20 Resistance: S 20 Resistance: P 20 Evasion (%) 44 Item Schematics ----------------- EM Pulse Gun | -10/Materials | Hacked Targeting Computer | -10/Materials | Hacked Datajack | -10/Materials | Hacked Robot Schematics ------------------ None Fabricated ------------ Nothing Alien Tech Used ----------------- None Achievements -------------- Batter Up root@ Challenges ------------ None Game ------ Seed TractorRegenerativeClaw Manual? 0 Play Time 00:21:11 Cumulative 13.2 hours Start 2019.11.17 @ 19:27:21 End 2019.11.17 @ 19:46:47 Sessions 1 Manual Loads 0 Difficulty Adventurer Special Mode None Game No. 14 Rogue 9 Adventurer 5 Explorer 0 Win Type - Total 0 Types 0/0/0/0/0/0/0 Lore% 5 Gallery% 14 Achievement% 17 Wizard Run 0 Options --------- ASCII 0 Keyboard 1 Movement Numpad Keybinds 0 Fullscreen 2 Font 18/X11 Map View 76x50 Tactical HUD 1 Map Filters NONE Filters NONE Steam 1 RUN: 2bc0e32c-14d1-46c3-b7dd-bc31dcc09596